Cogmind - Beta 15 @@@ ROGUE MODE // 2025.06.22 @ 16:02:36 Player: MyInternetBroke Result: Self-destructed Performance ------------- Evolutions (4) 2000 Regions Visited (8) 1600 Robots Destroyed (59) 295 Value Destroyed (1738) 1738 Prototype IDs (4) 80 Alien Tech Used (0) 0 Bonus (310) 310 TOTAL SCORE: 6023 Bonus ------- Follower Combat Kills 310 Cogmind --------- Core Integrity 586/850 Matter 199/300 Energy 149/490 System Corruption 1% Temperature Critical (502) Movement Walking (190) Ox1 Location -6/Factory Parts ------- > --- POWER (2) -------- Reinforced Deuterium Engine > --- PROPULSION (3) --- Armored Leg Armored Leg > --- UTILITY (7) ------ Medium Storage Unit Compact Battery Advanced Signal Interpreter Hardened Light Armor Plating > --- WEAPON (3) ------- Heavy Beamcaster Slug Cannon Makeshift Sword > --- INVENTORY (10) --- Biometal Leg Large Storage Unit High-capacity Matter Pod (200) Structural Scanner Advanced Sensor Array Advanced Signal Interpreter Heavy Battle Rifle Rocket Launcher Peak State ------------ > --- POWER ------------ Fission Core Fusion Compressor > --- PROPULSION ------- Armored Leg Armored Leg Armored Leg > --- UTILITY ---------- Medium Storage Unit Structural Scanner Advanced Signal Interpreter Utility Shielding Hardened Light Armor Plating System Shield Hacking Drone Bay > --- WEAPON ----------- Heavy Laser Magnetic Acceleration Cannon Makeshift Sword > --- INVENTORY -------- Reinforced Deuterium Engine Carbon-fiber Leg Advanced Heat Sink Advanced Heat Sink Large Storage Unit High-capacity Matter Pod Advanced Signal Interpreter Force Field Rocket Launcher [Rating: 63] Favorites ----------- Power Makeshift Power Source Engine Makeshift Power Source Power Core Fusion Compressor Propulsion Improved Aluminum Leg Treads Light Treads Leg Improved Aluminum Leg Wheel Wheel Utility Medium Storage Unit Device Sensor Array Storage Medium Storage Unit Processor Signal Interpreter Hackware System Shield Protection Hardened Light Armor Plating Weapon Makeshift Sword Energy Gun Heavy Laser Energy Cannon Beam Cannon Ballistic Gun Heavy Assault Rifle Ballistic Cannon Magnetic Acceleration Cannon Launcher Rocket Launcher Special Weapon Mining Laser Slashing Weapon Makeshift Sword Build | -11 -10 -9 -9 -7 -6 -6 -6 -6 ------- Run | Yrd Mat Mat Min Zio Pro Fac Was Fac Slots Evolved 8 | . . 2 . . . 6 . . Power 1 | . . . . . . 1 . . Propulsion 1 | . . . . . . 1 . . Utility 5 | . . 2 . . . 3 . . Weapon 1 | . . . . . . 1 . . Parts Attached 95 | 6 13 16 7 8 4 29 6 6 Power 14 | . 3 3 1 1 1 4 . 1 Engine 11 | . 2 3 1 1 1 2 . 1 Core 3 | . 1 . . . . 2 . . Reactor . | . . . . . . . . . Propulsion 24 | 3 6 3 2 1 3 5 . 1 Treads 1 | . 1 . . . . . . . Leg 21 | 2 5 3 1 1 3 5 . 1 Wheel 2 | 1 . . 1 . . . . . Hover . | . . . . . . . . . Flight . | . . . . . . . . . Utility 36 | 1 3 3 3 4 . 14 5 3 Device 17 | . 1 1 2 3 . 6 3 1 Storage 5 | 1 2 . . . . 1 . 1 Processor 5 | . . 1 1 . . 3 . . Hackware 1 | . . . . . . 1 . . Protection 8 | . . 1 . 1 . 3 2 1 Artifact . | . . . . . . . . . Weapon 21 | 2 1 7 1 2 . 6 1 1 Energy Gun 7 | . . 2 . . . 4 1 . Energy Cannon 2 | . . 1 . . . 1 . . Ballistic Gun 6 | 2 1 2 . 1 . . . . Ballistic Cannon 2 | . . . . . . 1 . 1 Launcher 2 | . . 1 1 . . . . . Special Weapon 1 | . . 1 . . . . . . Impact Weapon . | . . . . . . . . . Slashing Weapon 1 | . . . . 1 . . . . Piercing Weapon . | . . . . . . . . . Special Melee Weapon . | . . . . . . . . . Unidentified Prototypes 4 | . . . . 3 . 1 . . Parts Lost 11 | . . 3 . . 2 . . 6 Power 2 | . . 1 . . . . . 1 Propulsion 3 | . . 1 . . 1 . . 1 Utility 5 | . . . . . 1 . . 4 Weapon 1 | . . 1 . . . . . . Highest Loss Streak 6 | . . 2 . . 2 . . 6 To Critical Strikes 1 | . . . . . . . . 1 Average Backups 9 | 2 8 9 9 9 9 9 9 9 Power 1 | 1 1 . 1 1 1 1 1 . Propulsion 1 | 1 3 2 2 1 . . . 1 Utility 4 | . 1 2 3 4 4 6 7 5 Weapon 2 | . 1 2 2 2 3 1 1 2 Tool/Special . | . . . . . . . . . Unused Backups 12 | . . 2 2 2 1 1 . 4 Power 2 | . . . 1 1 . . . . Propulsion 3 | . . . . . 1 1 . 1 Utility 4 | . . 1 . 1 . . . 2 Weapon 2 | . . . 1 . . . . 1 Tool/Special 1 | . . 1 . . . . . . Average Slot Usage (%) 98 | . 96 99 100 98 98 98 100 99 Engine 8 | . 8 10 11 11 9 4 6 6 Core 3 | . 4 . . . . 7 6 5 Leg 21 | . 27 22 21 22 21 19 20 20 Device 14 | . 11 18 21 15 9 11 17 19 Storage 9 | . 14 11 11 11 11 6 6 6 Processor 8 | . . 11 11 11 11 8 6 6 Protection 7 | . . 3 . 4 12 13 13 13 Energy Gun 2 | . . 3 . . . 7 6 6 Energy Cannon 4 | . . . 9 11 7 . . . Ballistic Gun 8 | . 28 13 10 8 8 . . . Ballistic Cannon 1 | . . . . . . 4 . 5 Slashing Weapon 3 | . . . . 2 6 5 6 4 Peak Build Rating 63 | 5 9 14 16 34 28 63 61 60 Average Rating 31 | 3 7 13 14 18 23 56 56 57 On Entrance 23 | . 5 8 14 14 22 28 61 57 Naked Turns . | . . . . . . . . . Heaviest Build 67 | 7 28 26 32 53 24 58 47 67 Greatest Support 51 | 20 20 26 26 26 30 51 47 47 Greatest Overweight (x) 3 | . 1 1 3 2 1 1 . 1 Average Overweight (x) . | . . . . . . . . . Largest Inventory Capacity 15 | 8 15 10 10 10 10 15 10 10 Average Capacity 9 | 7 9 10 10 10 10 10 10 10 Most Carried 10 | 5 10 10 10 10 10 10 10 10 Average Carried 9 | 3 8 9 9 9 9 9 9 9 Final Capacity 10 | 8 10 10 10 10 10 10 10 10 Final Carried 10 | 5 10 10 10 10 10 10 10 8 Class Distribution -------------------- 76% | Mutant 13% | Scavenger-Mutant 4% | Assassin 3% | Derelict-Mutant Dominant Class ---------------- Mutant | -10/Materials Mutant | -9/Materials Mutant | -9/Mines Mutant | -7/Zion Mutant | -6/Proximity Caves Mutant | -6/Factory Scavenger-Mutant | -6/Waste Assassin | -6/Factory Resources | -11 -10 -9 -9 -7 -6 -6 -6 -6 ----------- Run | Yrd Mat Mat Min Zio Pro Fac Was Fac Matter Collected 2447 | 206 208 231 542 108 152 605 194 201 Remotely . | . . . . . . . . . Salvage Created 2095 | . 257 264 567 . 169 538 . 300 Parts 122 | . 14 24 30 . 5 29 . 20 Haulers Intercepted 2 | . 1 1 . . . . . . Recyclers Shooed 2 | . . . 2 . . . . . Parts Field Recycled 32 | . . . 32 . . . . . Retrieved Matter 102 | . . . 102 . . . . . Parts Self-Destructed 12 | . . . . . 12 . . . Prevented 1 | . . . . . 1 . . . Kills | -11 -10 -9 -9 -7 -6 -6 -6 -6 ------- Run | Yrd Mat Mat Min Zio Pro Fac Was Fac Combat Hostiles Destroyed 43 | . 5 8 5 . 4 12 . 9 Melee 13 | . . . . . 2 7 . 4 Guns 10 | . 5 4 . . . . . 1 Cannons 4 | . . . 2 . 1 1 . . AOE 15 | . . 4 3 . . 4 . 4 Classes Destroyed 11 | . 2 3 2 . 1 2 . 1 Worker 2 | . . . . . . 2 . . Builder 4 | . . 1 1 . . 2 . . Tunneler 1 | . . . 1 . . . . . Hauler 2 | . 1 1 . . . . . . Recycler 5 | . . . 5 . . . . . Watcher 2 | . . . . . . . . 2 Swarmer 18 | . . 4 3 . 1 5 . 5 Grunt 13 | . 5 . 2 . 2 2 . 2 Sentry 5 | . . 4 . . . 1 . . Programmer 6 | . . . . . 1 3 . 2 Mutant 1 | . . . . . . 1 . . Best Kill Streak 6 | . 2 4 3 . 3 6 . 5 Combat Bots Only 5 | . 2 3 3 . 3 5 . 5 Max Kills in Single Turn 3 | . 1 3 2 . 1 3 . 3 Gunslinging . | . . . . . . . . . Exploded 3 | . . 2 2 . . 3 . 3 Melee 1 | . . . . . 1 1 . 1 Uniques/NPCs Destroyed . | . . . . . . . . . Combat | -11 -10 -9 -9 -7 -6 -6 -6 -6 -------- Run | Yrd Mat Mat Min Zio Pro Fac Was Fac Hostile Shots Fired 429 | . 31 84 12 . 24 140 . 138 Missed 115 | . 10 31 5 . 5 34 . 30 Hits 314 | . 21 53 7 . 19 106 . 108 Projectile 314 | . 21 53 7 . 19 106 . 108 Critical Strikes 8 | . . 1 . . 3 . . 4 Part Disruptions 1 | . . . . . . . . 1 Damage Taken 4212 | . 268 634 69 . 437 1108 . 1696 Core 517 | . 70 87 6 . 90 80 . 184 Absorbed by Shields 289 | . . . . . . 183 . 106 Redirected to Shielding 50 | . . 4 . . . 13 . 33 Ignored by Resistances 63 | . . . . . . 63 . . Regen/Repaired (Parts) 8 | . . . . 8 . . . . Core Remaining (%) 75 | 100 72 . . . 54 . . . Volleys Fired 127 | . 32 33 27 . 6 12 . 17 Largest 3 | . 2 2 2 . 2 2 . 3 Hottest 154 | . 40 100 83 . 84 129 . 154 Shots Fired 234 | . 64 50 51 . 12 23 . 34 Gun 153 | . 64 31 24 . 6 14 . 14 Cannon 53 | . . . 24 . 6 8 . 15 Launcher 15 | . . 6 3 . . 1 . 5 Special 13 | . . 13 . . . . . . Kinetic 139 | . 64 23 24 . 6 7 . 15 Thermal 74 | . . 19 24 . 6 11 . 14 Explosive 15 | . . 6 3 . . 1 . 5 Electromagnetic 6 | . . 2 . . . 4 . . Robot Hit Streak 11 | . 11 6 7 . 9 5 . 4 Robot Miss Streak 8 | . 3 2 3 . 3 3 . 8 Penetration Max . | . . . . . . . . . Secondary Targets . | . . . . . . . . . Shots Hit Robots 172 | . 44 19 31 . 9 40 . 29 Core Hits 91 | . 15 19 15 . 6 19 . 17 Critical Kills . | . . . . . . . . . Critical Parts Destroyed 1 | . 1 . . . . . . . Critical Strikes 12 | . 1 . . . . 6 . 5 Burn 2 | . . . . . . . . 2 Destroy 1 | . 1 . . . . . . . Blast 1 | . . . . . . 1 . . Sever 8 | . . . . . . 5 . 3 Melee Attacks 104 | . . . . 1 6 73 . 24 Impact . | . . . . . . . . . Slashing 104 | . . . . 1 6 73 . 24 Piercing . | . . . . . . . . . Sneak Attacks 4 | . . . . . . 3 . 1 Combat Hostiles . | . . . . . . . . . Follow-up Attacks . | . . . . . . . . . Damage Inflicted 4871 | . 378 524 726 . 207 1718 . 1318 Guns 1123 | . 378 200 259 . 80 63 . 143 Cannons 518 | . . . 213 . 57 113 . 135 Explosions 1356 | . . 324 254 . . 280 . 498 Melee 1871 | . . . . . 70 1262 . 539 Ramming 3 | . . . . . . . . 3 Kinetic 1105 | . 378 140 259 . 80 113 . 135 Thermal 520 | . . 44 213 . 57 63 . 143 Explosive 1356 | . . 324 254 . . 280 . 498 Electromagnetic 16 | . . 16 . . . . . . Impact . | . . . . . . . . . Slashing 1871 | . . . . . 70 1262 . 539 Piercing . | . . . . . . . . . Highest Corruption 4 | . . . . . . 4 . 1 Average Corruption 1 | . . . . . . 2 . 1 Corruption Purged 5 | . . . . . . 5 . . Corruption Blocked . | . . . . . . . . . Effects 8 | . . . . . . 3 . 5 Matter Fused 2 | . . . . . . 1 . 1 Heat Flow Errors 2 | . . . . . . 1 . 1 Energy Discharges 2 | . . . . . . . . 2 Data Loss (minor) 1 | . . . . . . 1 . . Weapon Failures 1 | . . . . . . . . 1 Overload Shots . | . . . . . . . . . Overflow Damage 236 | . . . 81 . . 103 . 52 Projectiles 40 | . . . . . . . . 40 Explosions 103 | . . . 81 . . 22 . . Melee 93 | . . . . . . 81 . 12 Knockbacks 1 | . . . . . . . . 1 Impact . | . . . . . . . . . Kinetic 1 | . . . . . . . . 1 Secondary . | . . . . . . . . . Self-Inflicted Damage 26 | . . 26 . . . . . . Shots 2 | . . 2 . . . . . . Rammed . | . . . . . . . . . Targets Rammed 1 | . . . . . . . . 1 Kicked 1 | . . . . . . . . 1 Crushed . | . . . . . . . . . Highest Temperature 502 | . 38 84 267 . 155 218 . 502 Average Temperature 66 | . 15 16 81 . 64 62 . 234 Received Heat Transfer 932 | . 153 150 18 . 147 269 . 195 Effects 2 | . . . . . . . . 2 Damage (minor) 2 | . . . . . . . . 2 Siege Activations . | . . . . . . . . . Martial Activations . | . . . . . . . . . Shielding Activations . | . . . . . . . . . Robots Disrupted . | . . . . . . . . . Combat Hostiles . | . . . . . . . . . Robots Corrupted . | . . . . . . . . . Combat Hostiles . | . . . . . . . . . Parts Fried . | . . . . . . . . . Impact Corruptions . | . . . . . . . . . Robots Melted 1 | . . . . . 1 . . . Combat Hostiles 1 | . . . . . 1 . . . Parts Melted 1 | . . . . . 1 . . . Heat Transferred 1147 | . . 111 444 . 111 111 . 370 Parts Sabotaged . | . . . . . . . . . Parts Stolen . | . . . . . . . . . Parts Stripped . | . . . . . . . . . Power Chain Reactions . | . . . . . . . . . Alert | -11 -10 -9 -9 -7 -6 -6 -6 -6 ------- Run | Yrd Mat Mat Min Zio Pro Fac Was Fac Maximum Alert Level 1 | . . . . . . 1 . . Low Security (%) 99 | 100 100 100 100 . . 99 100 100 Level 1 . | . . . . . . . . . Level 2 . | . . . . . . . . . Level 3 . | . . . . . . . . . Level 4 . | . . . . . . . . . Level 5 . | . . . . . . . . . High Security . | . . . . . . . . . Max Security . | . . . . . . . . . Peak Influence 202 | . 50 126 104 . . 202 66 123 Initial 66 | . . . 1 . . . 66 . Average 25 | . 8 47 34 . . 23 18 27 Influence Increases 1660 | . 158 267 189 . 208 565 . 273 Destroy 0b10 Robot/C 1000 | . 100 160 100 . 140 320 . 180 Destroy 0b10 Robot/NC 80 | . 5 10 35 . . 20 . 10 Destroy Leader 228 | . 32 52 20 . 20 70 . 34 Allied During Kill 69 | . . . . . 48 21 . . Successful Hack 47 | . 21 . . . . 26 . . Disable Machine 75 | . . . 15 . . 60 . . Destroy Structure 131 | . . 45 19 . . 48 . 19 Lose Combat Pursuer 30 | . . . . . . . . 30 Influence Decreases 1660 | . 158 262 194 . 208 375 190 273 Entered New Map 128 | . . . 4 . . . 124 . Time Decay 1334 | . 158 232 190 . 165 308 66 215 Lost Part 98 | . . 30 . . 10 . . 58 Lost Ally 60 | . . . . . 33 27 . . Purge Threat 40 | . . . . . . 40 . . Squads Dispatched 11 | . 2 1 . . 1 5 . 2 Investigation 2 | . 2 . . . . . . . Extermination 4 | . . . . . . 3 . 1 Reinforcement 4 | . . 1 . . . 2 . 1 Assault 1 | . . . . . 1 . . . Garrison . | . . . . . . . . . Intercept . | . . . . . . . . . Searches Triggered . | . . . . . . . . . Construction Impeded 1 | . . . . . . 1 . . Haulers Reinforced 1 | . . . . . . . . 1 Active Scanning Responses . | . . . . . . . . . Cargo Convoy Interrupts . | . . . . . . . . . Stealth | -11 -10 -9 -9 -7 -6 -6 -6 -6 --------- Run | Yrd Mat Mat Min Zio Pro Fac Was Fac Distress Signals 5 | . 1 1 . . . . . 3 Communications Jammed . | . . . . . . . . . Distress Signals . | . . . . . . . . . Times Spotted 81 | . 10 22 5 . 7 19 . 18 Peak Tracking Total 6 | . 3 6 3 . 5 4 . 6 Tactical Retreats 3 | . . 2 . . . . . 1 Traps | -11 -10 -9 -9 -7 -6 -6 -6 -6 ------- Run | Yrd Mat Mat Min Zio Pro Fac Was Fac Traps Triggered 4 | . 1 . . . . 3 . . Indirectly . | . . . . . . . . . Trap Hack Attempts . | . . . . . . . . . Triggered . | . . . . . . . . . Disarmed . | . . . . . . . . . Reprogrammed . | . . . . . . . . . Reused . | . . . . . . . . . Traps Extracted . | . . . . . . . . . Installed . | . . . . . . . . . Triggered . | . . . . . . . . . Machines | -11 -10 -9 -9 -7 -6 -6 -6 -6 ---------- Run | Yrd Mat Mat Min Zio Pro Fac Was Fac Machines Disabled 5 | . . . 1 . . 4 . . Max in Single Turn 4 | . . . 1 . . 4 . . Garrison Access 1 | . . . . . . 1 . . Machines Repaired . | . . . . . . . . . Machines Dismantled . | . . . . . . . . . Machines Sabotaged . | . . . . . . . . . Overloaded Fab Kills . | . . . . . . . . . Hacking | -11 -10 -9 -9 -7 -6 -6 -6 -6 --------- Run | Yrd Mat Mat Min Zio Pro Fac Was Fac Machines Accessed 17 | . 5 3 . . . 8 . 1 Terminals 14 | . 5 3 . . . 5 . 1 Fabricators 1 | . . . . . . 1 . . Repair Stations . | . . . . . . . . . Recycling Units . | . . . . . . . . . Scanalyzers 1 | . . . . . . 1 . . Garrison Access 1 | . . . . . . 1 . . Total Hacks 48 | . 14 8 . . . 24 . 2 Successful 21 | . 7 4 . . . 10 . . Failed 27 | . 7 4 . . . 14 . 2 Catastrophic 5 | . 1 1 . . . 3 . . Database Lockouts . | . . . . . . . . . Manual 27 | . 8 7 . . . 10 . 2 Terminals 38 | . 14 8 . . . 14 . 2 Fabricators 3 | . . . . . . 3 . . Repair Stations . | . . . . . . . . . Recycling Units . | . . . . . . . . . Scanalyzers 2 | . . . . . . 2 . . Garrison Access 5 | . . . . . . 5 . . Terminal Hacks 7 | . 3 2 . . . 2 . . Terminal Index 1 | . . 1 . . . . . . Unreport Threat 1 | . . . . . . 1 . . Dispatch Records 3 | . 1 1 . . . 1 . . Maintenance Status 1 | . 1 . . . . . . . Security Status 1 | . 1 . . . . . . . Fabricator Hacks 1 | . . . . . . 1 . . Load Schematic 1 | . . . . . . 1 . . Repair Station Hacks . | . . . . . . . . . Recycling Unit Hacks . | . . . . . . . . . Scanalyzer 1 | . . . . . . 1 . . Insert Component 1 | . . . . . . 1 . . Garrison Access Hacks 2 | . . . . . . 2 . . Seal Access 1 | . . . . . . 1 . . Coupler Status 1 | . . . . . . 1 . . Unauthorized Hacks 10 | . 4 2 . . . 4 . . Terminals 10 | . 4 2 . . . 4 . . Botnet 8 | . 3 1 . . . 4 . . Operators 2 | . 1 1 . . . . . . Fabricators . | . . . . . . . . . Repair Stations . | . . . . . . . . . Recycling Units . | . . . . . . . . . Scanalyzers . | . . . . . . . . . Garrison Access . | . . . . . . . . . Data Cores Recovered 1 | . 1 . . . . . . . Used . | . . . . . . . . . Hacking Detections 16 | . 5 3 . . . 7 . 1 Full Trace Events 1 | . 1 . . . . . . . Feedback Events . | . . . . . . . . . Feedback Blocked . | . . . . . . . . . Robot Schematics Acquired 4 | . . . . 4 . . . . Robots Built . | . . . . . . . . . Authchips . | . . . . . . . . . Time . | . . . . . . . . . Total Robot Build Rating . | . . . . . . . . . Part Schematics Acquired 12 | . . . . 12 . . . . Parts Built . | . . . . . . . . . Authchips . | . . . . . . . . . Time . | . . . . . . . . . Total Part Build Rating . | . . . . . . . . . Parts Repaired . | . . . . . . . . . Time . | . . . . . . . . . Parts Recycled . | . . . . . . . . . Recycled Matter . | . . . . . . . . . Retrieved Matter . | . . . . . . . . . Retrieved Components . | . . . . . . . . . Parts Scanalyzed 1 | . . . . . . 1 . . Part Schematics Acquired . | . . . . . . . . . Parts Damaged 1 | . . . . . . 1 . . Bothacking | -11 -10 -9 -9 -7 -6 -6 -6 -6 ------------ Run | Yrd Mat Mat Min Zio Pro Fac Was Fac Used RIF Installer . | . . . . . . . . . Robots Hacked . | . . . . . . . . . Non-combat . | . . . . . . . . . Combat . | . . . . . . . . . Robot Hacks Applied . | . . . . . . . . . Relay Couplers Released . | . . . . . . . . . Fabnet Peak Effective % . | . . . . . . . . . Robots Rewired 1 | . . . . . 1 . . . Allies Hacked 1 | . . . . . 1 . . . Hacks Repelled . | . . . . . . . . . Allies | -11 -10 -9 -9 -7 -6 -6 -6 -6 -------- Run | Yrd Mat Mat Min Zio Pro Fac Was Fac Total Allies 8 | . . . . 7 1 . . . Largest Group 7 | . . . . 7 7 3 . . Highest-Rated Group 189 | . . . . 189 189 83 . . Highest-Rated Ally 32 | . . . . 32 32 32 . . Total Orders . | . . . . . . . . . Ally Attacks 58 | . . . . . 37 21 . . Total Damage 1145 | . . . . . 758 387 . . Kills 8 | . . . . . 4 4 . . Allies Corrupted . | . . . . . . . . . Allies Melted . | . . . . . . . . . Intel | -11 -10 -9 -9 -7 -6 -6 -6 -6 ------- Run | Yrd Mat Mat Min Zio Pro Fac Was Fac Active Infowar (turns) 6783 | . 673 693 692 1334 789 1744 171 687 Optics 2 | . . . 2 . . . . . Sensors 4432 | . 673 599 692 1334 577 . . 557 Structural 1901 | . . . . . . 1045 171 685 Traps 416 | . . . . . . 416 . . Seismic 1772 | . . . 288 571 212 701 . . ECM 563 | . . 563 . . . . . . Robot Analysis Total . | . . . . . . . . . Derelict Logs Recovered 3 | . . . 1 1 1 . . . Drone Launches 1 | . . . . . . 1 . . Drone Recoveries . | . . . . . . . . . Exploration | -11 -10 -9 -9 -7 -6 -6 -6 -6 ------------- Run | Yrd Mat Mat Min Zio Pro Fac Was Fac Turns Passed 7574 | 52 807 693 692 1564 939 1832 269 726 Spaces Moved 4672 | 39 513 402 396 1184 699 933 207 299 Core 1 | 1 . . . . . . . . Treads 3 | . 3 . . . . . . . Legs 4647 | 22 510 402 391 1184 699 933 207 299 Wheels 21 | 16 . . 5 . . . . . Hover . | . . . . . . . . . Flight . | . . . . . . . . . Fastest Speed 50 | 50 120 120 120 120 120 120 120 120 Average Speed 135 | 101 120 124 147 127 120 159 120 168 Slowest Speed 260 | 120 190 190 190 260 190 193 120 190 Overloaded Moves . | . . . . . . . . . Propulsion Burnouts . | . . . . . . . . . Robots Hopped . | . . . . . . . . . Potential Cave-ins . | . . . . . . . . . Cave-ins Triggered . | . . . . . . . . . Exploration Rate (%) 49 | 3 71 36 70 75 73 26 81 8 Regions Visited 8 Branch Regions 3 Pre-discovered Areas 4 | . . . . 4 . . . . Known Exits Taken 4 | . . 1 1 1 1 . . . Unknown Exits Taken 2 | 1 1 . . . . . . . Scrap Searched 5 | . . . 1 3 1 . . . Spaces Dug 42 | . . 12 . . . 29 . 1 Terrain Destroyed 154 | . . 49 20 . . 65 . 20 Melee 29 | . . . . . . 28 . 1 Projectile 21 | . . 12 . . . 1 . 8 AOE 104 | . . 37 20 . . 36 . 11 Terrain Rammed . | . . . . . . . . . Walls Destroyed . | . . . . . . . . . Machines Disabled . | . . . . . . . . . Actions | -11 -10 -9 -9 -7 -6 -6 -6 -6 --------- Run | Yrd Mat Mat Min Zio Pro Fac Was Fac Total 5565 | 49 650 525 453 1237 778 1183 229 461 Wait 338 | . 71 36 4 18 35 72 . 102 Move 4665 | 38 512 401 395 1183 698 933 206 299 Hop . | . . . . . . . . . Pick Up 68 | 4 9 12 7 10 4 17 5 . Fast Attach 38 | 6 4 2 . 3 3 17 1 2 Attach 25 | . 2 6 3 3 2 7 1 1 Detach 5 | 1 . 1 . . 1 2 . . Swap 87 | . 8 20 10 6 6 20 7 10 Drop 96 | . 12 14 7 13 7 30 8 5 Fire 127 | . 32 33 27 . 6 12 . 17 Melee 104 | . . . . 1 6 73 . 24 Ram . | . . . . . . . . . Kick 1 | . . . . . . . . 1 Crush . | . . . . . . . . . Escape Stasis . | . . . . . . . . . Rewire 11 | . . . . . 10 . 1 . Trap . | . . . . . . . . . Miscellaneous . | . . . . . . . . . Route ------- -11/Scrapyard -10/Materials (discovered 4 exits: *Mat x2 / [*Min x2]) -9/Materials -9/Mines (discovered 2 exits: [*Mat] / *Zio) -7/Zion -6/Proximity Caves -6/Factory -6/Waste -6/Factory History --------- Turn | Location | Event 21 | -11/Scrapyard | Discovered new exit (range 15) 53 | -11/Scrapyard | Entered Materials 54 | -10/Materials | Met a group of wandering Federalists 90 | -10/Materials | Discovered new exit (range 15) 303 | -10/Materials | Build established: Mutant 368 | -10/Materials | Discovered new exit (range 16) 452 | -10/Materials | Discovered new exit (range 16) 814 | -10/Materials | Discovered new exit (range 13) 860 | -10/Materials | Entered another Materials area 860 | -9/Materials | Evolved 2 slots: Utility x2 1528 | -9/Materials | Discovered new exit (range 15) 1545 | -9/Materials | Identified exit to Mines 1553 | -9/Materials | Entered Mines 1557 | -9/Mines | Discovered new exit (range 6) 1579 | -9/Mines | Learned 2 Materials zone layouts 1640 | -9/Mines | Received a Rocket Launcher from a helpful Derelict 2106 | -9/Mines | A Derelict revealed a hidden shortcut to a safe place 2244 | -9/Mines | Identified exit to Zion 2245 | -9/Mines | Entered Zion 2707 | -7/Zion | Learned location of Warlord (-4) 2809 | -7/Zion | Found Prototype Device 2817 | -7/Zion | Identified Bomb Factory No. 2 2989 | -7/Zion | Given the Hacking Drone Bay 2990 | -7/Zion | Found Prototype Device 2990 | -7/Zion | Identified Hacking Drone Bay 3165 | -7/Zion | Found Prototype Device 3166 | -7/Zion | Identified Phasing AFG 3204 | -7/Zion | Gained Derelict followers 3230 | -7/Zion | Learned location of Recycling (-7) 3455 | -7/Zion | Given A8's code to call for help 3583 | -7/Zion | Learned location of Extension (-5) 3674 | -7/Zion | Gained Derelict followers 3735 | -7/Zion | Discovered new exit (range 16) 3790 | -7/Zion | Identified exit to Proximity Caves 3809 | -7/Zion | Entered Proximity Caves 3809 | -6/Proximity Caves | Accompanied by 7 allies 3879 | -6/Proximity Caves | Identified exit to Factory 4197 | -6/Proximity Caves | Spotted B-75 Beast 4212 | -6/Proximity Caves | Allies destroyed B-75 Beast 4390 | -6/Proximity Caves | Attracted the attention of an 0b10 outpost 4429 | -6/Proximity Caves | Lost 3 allies 4748 | -6/Proximity Caves | Entered Factory 4748 | -6/Factory | Accompanied by 3 allies 4748 | -6/Factory | Evolved 6 slots: Power x1, Propulsion x1, Utility x3, Weapon x1 5633 | -6/Factory | Build established: Scavenger-Mutant 5952 | -6/Factory | Build established: Mutant 6580 | -6/Factory | Sucked down chute 6580 | -6/Factory | Entered Waste 6580 | -6/Waste | The area was eerily silent 6820 | -6/Waste | Discovered new exit (range 16) 6837 | -6/Waste | Identified exit to Factory 6849 | -6/Waste | Entered Factory 6884 | -6/Factory | Build established: Scavenger-Mutant 7575 | -6/Factory | Self-destructed Last Messages --------------- 07566_ U-05 Engineer lays Concrete. 07566_ U-05 Engineer builds a Wall. 07566_ Slug penetrates Wall. 07566_ Penetrated by Slug. 07567_ U-05 Engineer lays Concrete. 07569_ Destroyed Phase Shifter. 07569_ H-66 Slayer suffers critical hit (Burn). 07569_ H-66 Slayer knocked back. 07569_ Penetrated by Slug. 07570_ Overheating: Arm. Leg damaged (-74). 07570_ U-05 Engineer lays Concrete. 07572_ Slug penetrates H-66 Slayer. 07572_ Penetrated by Slug. 07572_ Critical hit (Destroy). 07572_ Carbon-fiber Leg destroyed. 07572_ U-05 Engineer lays Concrete. 07574_ Penetrated by Slug. 07574_ Hrd. Medium Armor Plating destroyed. 07574_ U-05 Engineer lays Concrete. 07575_ Overheating: Hvy. Beamcaster damaged (-11). Map ----- +----------------------------------------------------+ | ?????????????????????????????????????????????????? | | ?????????????????????????????????????????????????? | | ?????????????????????????????????????????????????? | | ?????????????????????????????????????????????????? | | ?????????????????????????????????????????????????? | | ?????????????????????????????????????????????????? | | ?????????????????????????????????????????????????? | | ?????????????????????????????????????????????????? | | ?????????????????????????????????????????????????? | | ?????????????????????????????????????????????????? | | ???????????????????????????????? ????????????? | | ???????????????????????????????? ##????????????? | | ???????????????????????????????? # ????????????? | | ???????????????????????????????? + ????????????? | | ???????????????????????????????? # ????????????? | | #####????????????????????? # ????????????? | | ##+########??????????????????? # # ????????????? | | ##??????????????????? # # ????????????? | | ! ##??????????????????? + # ????????????? | | ##??????????????????? # # ????????????? | | " """ ##??????????????????? # # ????????????? | | " """ ##?################??## ##????????????? | | " """ ##?#################### ###???????????? | | ##?## *######% ###???????????? | | " """ ##?## %u/% %*= ###???????????? | | " """ ##?## @######[ ###???????????? | | " """ ! ##?## h ###### ###???????????? | | ##?#; h ##??## ##????????????? | | ##?## % ##??## ##????????????? | | +##########?## u ##??## ##????????????? | | ! #######?## u ##??## ##????????????? | | ##??????## ##??## ##????????????? | | ##?????? # ! ##??## ##????????????? | | ##??????## ##??## ##????????????? | | ##??????#; ###### ##????????????? | | ################+########### ##????????????? | | ############## ????????????? | | # [%= =%# ?????????????? | | # """"""""" + ?????????????? | | # # ?????????????? | | # """"""""" # ??????????????? | | # # ###########???????????????? | | ##### """"""""" # ###########???????????????? | | + # ##????????????????????????? | | [ ### """"""""" # ##????????????????????????? | | * ## # ##????????????????????????? | | ### """"""""" ^/ ##????????????????????????? | | ### # ##????????????????????????? | | ### # ##????????????????????????? | | ################ ##????????????????????????? | +----------------------------------------------------+ Best States ------------- Heat Dissipation 83 Energy Generation 38 Energy Capacity 490 Matter Stores 300 Matter Capacity 300 Sight Range 16 Robot Scan Range 16 Terrain Scan Density 10 ECM Strength 1 Armor Coverage 375 Resistance: TH 15 Resistance: EM 25 Utility Shielding 33 Evasion (%) 55 Targeting Accuracy 8 Recoil Reduction 1 Defensive Hacking 10 Item Schematics ----------------- Imp. Component Analysis Suite | -7/Zion | Archive Fission Core | -7/Zion | Archive Adv. Terrain Scan Processor | -7/Zion | Archive Hyp. Gauss Cannon | -7/Zion | Archive Imp. Medium Treads | -7/Zion | Archive Xenon Bombardment Thruster | -7/Zion | Archive Plasma Rifle | -7/Zion | Archive Matter Filter | -7/Zion | Archive Shock Absorption System | -7/Zion | Archive EM Shield | -7/Zion | Archive Adv. Sensor Array | -7/Zion | Archive Remote Datajack | -7/Zion | Archive Robot Schematics ------------------ S-27 Virus | -7/Zion | Archive T-07 Excavator | -7/Zion | Archive B-48 Gladiator | -7/Zion | Archive C-57 Dissector | -7/Zion | Archive Fabricated ------------ Nothing Repaired ---------- Nothing Alien Tech Used ----------------- None Achievements -------------- None Challenges ------------ None Game ------ Seed SpreadCompanionSubcomponent Manual? 0 Play Time 02:11:59 Cumulative 64.9 hours Start 2025.06.19 @ 23:02:26 End 2025.06.22 @ 16:02:36 Sessions 7 Manual Loads 0 Difficulty Rogue Special Mode None Game No. 48 Rogue 48 Adventurer 0 Explorer 0 Win Type - Total 0 Types 0/0/0/0/0/0/0/0/0/0 Lore% 12 Gallery% 34 Achievement% 30 Wizard Run 0 Options --------- Layout 0 ASCII 0 Keyboard 0 Movement Numpad Keybinds 0 Fullscreen 2 Font 24/Smallcaps Map View 113x50 Zoom Use 0% Tactical HUD 1 Map Filters NONE Filters NONE Steam 1 RUN: 9bedde56-6fa3-4374-a0f7-df0bf61f91c7